bitfinex/quotes_ETHUSD_20241129
["timestamp","ask_amount","ask_price","bid_price","bid_amount"]
[1732905733165,2.78941,3585.0,3584.7,0.52074876]
[1732905733325,2.78941,3585.0,3584.4,0.7931]
[1732905733326,2.78941,3585.0,3584.4,3.58295]
[1732905733884,2.7895,3584.9,3584.4,0.7931]
[1732905734367,2.78968,3584.7,3584.4,0.7931]
[1732905736743,2.78968,3584.7,3584.1,2.79008]
[1732905737467,0.7992,3585.1,3584.1,1.01240459]
[1732905737843,2.78975,3584.6,3584.1,1.01240459]
[1732905738192,2.79005,3584.2,3584.0,0.7739]
[1732905738385,0.7577,3584.4,3583.6,0.7803]
[1732905738680,2.79014,3584.1,3583.6,0.7803]
[1732905738889,2.79019,3584.0,3583.6,0.7803]
[1732905739391,2.79019,3584.0,3583.7,0.26047913]
[1732905739597,2.79019,3584.0,3583.7,0.41680856]
[1732905739737,2.79019,3584.0,3583.6,0.7803]
[1732905740575,2.78992,3584.4,3583.7,2.79035]
[1732905740891,2.79003,3584.2,3583.6,3.57072]
[1732905741382,2.79018,3584.0,3583.6,0.7803]
[1732905741600,2.78967,3584.7,3583.6,0.7803]
[1732905741601,2.79041,3583.7,3583.6,0.7803]
[1732905742203,3.5935,3584.1,3583.1,0.7922]
[1732905742495,2.7906,3583.5,3583.1,0.7922]
[1732905744742,2.79043,3583.7,3583.1,0.7922]
[1732905744945,2.79056,3583.5,3582.8,0.7843]
[1732905745583,2.79056,3583.5,3582.9,2.79096]
[1732905745888,2.79056,3583.5,3582.9,4.20740281]
[1732905746094,2.79043,3583.7,3582.9,4.20740281]
[1732905746278,2.79043,3583.7,3583.1,2.7908]
[1732905746473,2.79049,3583.6,3583.1,2.7908]
[1732905746802,2.79049,3583.6,3582.9,4.20740281]
[1732905746948,2.79049,3583.6,3583.0,1.27828528]
[1732905747288,2.79055,3583.6,3583.0,1.27828528]
[1732905747490,5.5811,3583.6,3583.0,1.27828528]
[1732905748150,2.79061,3583.5,3583.0,1.27828528]
[1732905748551,2.79057,3583.5,3583.0,1.27828528]
[1732905749788,2.79049,3583.6,3583.1,2.79087]
[1732905750097,2.79049,3583.6,3583.0,1.27828528]
[1732905750098,2.79057,3583.5,3583.0,1.27828528]
[1732905750597,2.79103,3582.9,3582.8,0.7843]
[1732905750895,2.79108,3582.9,3582.7,5.0]
[1732905751889,2.79091,3583.1,3582.7,5.0]
[1732905752193,3.168737,3584.6,3582.8,0.7954]
[1732905752194,2.79059,3583.5,3582.8,0.7954]
[1732905752377,2.79059,3583.5,3582.9,3.37056]
[1732905755052,2.79059,3583.5,3583.0,2.79094]
[1732905755268,2.79059,3583.5,3582.9,0.57954]
[1732905755466,2.79059,3583.5,3582.9,3.37056]
[1732905757805,2.79059,3583.5,3583.0,2.79095]
[1732905757971,2.79052,3583.6,3583.0,3.986641]
[1732905758617,2.79062,3583.5,3583.0,1.195691]
[1732905758976,2.79058,3583.5,3583.0,3.986591]
[1732905760502,2.79058,3583.5,3583.0,1.195691]
[1732905760726,0.8245,3584.0,3583.0,1.195691]
[1732905760870,2.79011,3584.1,3583.4,0.8187]
[1732905761073,2.79011,3584.1,3583.6,2.79048]
[1732905762415,2.79011,3584.1,3583.4,3.60928]
[1732905762578,2.79019,3584.0,3583.5,2.79055]
[1732905766310,5.58011,3584.2,3583.5,2.79055]
[1732905766645,2.79011,3584.1,3583.6,0.360925]
[1732905767538,2.79011,3584.1,3583.6,3.151395]
[1732905767704,2.79011,3584.1,3583.6,0.360925]
[1732905768319,2.79011,3584.1,3583.6,3.151395]
[1732905769443,0.7593,3584.7,3583.6,0.360925]
[1732905769597,2.79044,3583.7,3583.4,0.8187]
[1732905773041,2.79044,3583.7,3583.1,0.47890891]
[1732905773042,2.79052,3583.6,3583.1,1.29480891]
[1732905773442,0.7997,3584.1,3583.1,1.29480891]
[1732905773443,2.7908,3583.3,3583.1,0.8159]
[1732905775988,2.79059,3583.5,3583.1,0.8159]
[1732905776404,3.766,3584.5,3583.1,0.8159]
[1732905776694,2.79024,3584.0,3583.3,2.79066]
[1732905776890,2.79024,3584.0,3583.4,0.8091]
[1732905777544,2.79034,3583.8,3583.4,0.8091]
[1732905777745,5.58048,3584.0,3583.4,1.448162]
[1732905777951,2.79027,3583.9,3583.4,1.448162]
[1732905779499,2.79033,3583.8,3583.4,1.448162]
[1732905779847,8.36958,3584.4,3583.1,0.8026]
[1732905780103,2.79054,3583.6,3583.1,0.8026]
[1732905780389,2.79066,3583.4,3583.1,0.8026]
[1732905781303,0.7808,3583.7,3582.9,0.8286]
[1732905781625,2.79078,3583.3,3582.9,0.8286]
[1732905781773,2.79078,3583.3,3582.9,1.61005013]
[1732905783100,2.79065,3583.4,3582.9,1.61005013]
[1732905784317,2.79035,3583.8,3583.0,2.79095]
[1732905784522,2.79035,3583.8,3583.0,2.79089]
[1732905784690,2.79005,3584.2,3583.5,3.54381]
[1732905785012,2.79028,3583.9,3583.5,0.7533]
[1732905785223,2.79014,3584.1,3583.5,0.7533]
[1732905785388,2.79018,3584.0,3583.5,1.107709]
[1732905785722,2.79018,3584.0,3583.5,3.898249]
[1732905786320,2.79007,3584.2,3583.6,2.79047]
[1732905786532,2.78982,3584.5,3583.6,5.58089]
[1732905786816,2.78994,3584.3,3583.7,0.6688599]
[1732905787190,2.78982,3584.5,3583.7,0.6688599]
[1732905787392,5.57968,3584.5,3583.8,2.79027]
[1732905787722,2.78986,3584.4,3583.8,2.79027]
[1732905788214,2.78973,3584.6,3583.9,2.79021]
[1732905788725,2.78981,3584.5,3583.9,2.79021]
[1732905788875,2.78973,3584.6,3583.9,2.79021]
[1732905789093,2.78994,3584.3,3583.7,3.4592099]
[1732905789447,0.7799,3584.2,3583.4,0.8188]
[1732905789591,3.0,3584.6,3582.9,0.78145013]
[1732905789592,2.78991,3584.4,3583.8,5.58053]
[1732905789792,2.78991,3584.4,3583.9,0.8188]
[1732905790106,2.78976,3584.6,3584.0,2.79016]
[1732905790505,2.78957,3584.8,3583.9,0.8188]
[1732905790719,2.7897,3584.7,3584.1,2.79009]
[1732905791040,2.78971,3584.6,3584.1,2.79009]
[1732905791802,2.78964,3584.7,3584.1,2.79009]
[1732905792491,2.78973,3584.6,3584.1,2.79009]
[1732905792801,0.7799,3584.9,3583.9,3.60899]
[1732905792994,2.78955,3584.8,3583.9,0.8188]
[1732905793195,3.0,3585.3,3584.3,2.78987]
[1732905793516,2.78923,3585.3,3584.7,2.78962]
[1732905793832,2.78927,3585.2,3584.8,1.07188371]
[1732905794151,2.78927,3585.2,3585.0,0.55]
[1732905794299,2.78927,3585.2,3584.7,0.55]
[1732905794499,2.78927,3585.2,3584.6,2.78964]
[1732905794500,2.78927,3585.2,3584.9,0.55]
[1732905794802,2.78909,3585.4,3584.7,3.33958]
[1732905795001,2.78901,3585.5,3585.0,0.55]
[1732905796250,2.78906,3585.5,3585.0,0.55]
[1732905799173,2.78886,3585.7,3585.1,0.55]
[1732905799476,2.78894,3585.6,3585.1,0.55]
[1732905799619,2.78886,3585.7,3585.1,0.55]
[1732905799820,2.78901,3585.5,3585.3,0.55]
[1732905800760,2.78886,3585.7,3585.3,0.55]
[1732905801258,2.78893,3585.6,3585.1,0.55]
[1732905801465,2.78893,3585.6,3585.1,1.246203]
[1732905802425,2.78893,3585.6,3585.3,0.55]
[1732905802961,2.78902,3585.5,3585.3,0.55]
[1732905803467,2.78902,3585.5,3585.2,0.55]
[1732905806748,2.78902,3585.5,3584.9,0.55]
[1732905806928,2.7892,3585.3,3584.9,0.55]
[1732905807132,2.7892,3585.3,3584.9,0.967278]
[1732905807753,2.78987,3584.4,3583.8,2.79028]
[1732905807957,2.78971,3584.6,3583.9,2.79021]
[1732905808279,2.78968,3584.7,3584.0,2.79014]
[1732905808581,2.78972,3584.6,3584.0,2.79014]
[1732905808786,2.78972,3584.6,3584.1,0.279014]
[1732905808930,2.78951,3584.9,3584.2,0.775]
[1732905809151,2.78951,3584.9,3584.3,0.55]
[1732905809362,2.78967,3584.7,3584.3,0.55]
[1732905813764,2.78972,3584.6,3584.3,0.55]
[1732905815079,2.78967,3584.7,3584.3,0.55]
[1732905815080,2.7898,3584.5,3584.3,0.55]
[1732905816887,2.78967,3584.7,3584.3,0.55]
[1732905818493,2.7891,3585.4,3584.7,0.051833]
[1732905818792,2.78956,3584.8,3584.7,0.051833]
[1732905821502,2.78949,3584.9,3584.7,0.051833]
[1732905823376,2.78932,3585.1,3584.7,0.051833]
[1732905823377,2.78932,3585.1,3584.8,0.8291]
[1732905826813,0.8226,3585.9,3584.8,0.8291]
[1732905826971,3.61108,3586.2,3585.4,0.8324]
[1732905827183,3.61108,3586.2,3585.5,3.36687895]
[1732905827184,2.78853,3586.2,3585.5,3.36687895]
[1732905827414,2.7886,3586.1,3585.5,0.55]
[1732905827787,2.78833,3586.4,3585.7,0.55]
[1732905828009,2.78844,3586.3,3585.7,0.55]
[1732905828327,2.78848,3586.2,3585.7,0.55]
[1732905830276,2.78855,3586.1,3585.7,0.55]
[1732905831022,2.78839,3586.3,3585.7,1.24604]
[1732905831179,2.78839,3586.3,3585.7,4.03489]
[1732905831775,2.78833,3586.4,3585.7,4.03489]
[1732905831977,2.78833,3586.4,3585.8,2.78872]
[1732905832182,2.78833,3586.4,3586.0,0.7701]
[1732905832414,2.78839,3586.3,3586.0,0.7701]
[1732905833726,2.78848,3586.2,3586.0,0.7701]
[1732905834803,2.78833,3586.4,3586.0,0.7701]
[1732905835101,2.78839,3586.3,3586.0,0.7701]
[1732905835754,2.78847,3586.2,3586.0,0.7701]
[1732905840209,3.61288,3586.3,3585.6,0.807]
[1732905840574,2.78879,3585.8,3585.6,0.807]
[1732905844033,2.78916,3585.3,3585.2,0.55]
[1732905844345,2.78904,3585.5,3584.6,0.7665]
[1732905844542,2.78921,3585.3,3584.7,3.145233]
[1732905844744,2.78926,3585.2,3584.7,3.145233]
[1732905845363,2.78926,3585.2,3584.7,0.355623]
[1732905845681,2.78926,3585.2,3584.7,0.55]
[1732905845852,2.78939,3585.1,3584.7,0.55]
[1732905846481,2.78926,3585.2,3584.7,0.55]
[1732905846482,2.78942,3585.0,3584.7,0.55]
[1732905846685,2.78935,3585.1,3584.7,0.55]
[1732905846974,2.78935,3585.1,3584.9,0.55]
[1732905848370,2.7894,3585.0,3584.9,0.55]
[1732905848678,2.78919,3585.3,3584.9,0.55]
[1732905848880,2.78933,3585.1,3584.9,0.55]
[1732905849235,2.78933,3585.1,3584.8,0.710624]
[1732905849435,2.78947,3584.9,3584.7,0.55]
[1732905849884,2.78947,3584.9,3584.6,0.7665]
[1732905850048,2.78963,3584.7,3584.4,0.55]
[1732905850251,2.78971,3584.6,3584.4,0.55]
[1732905850593,2.78971,3584.6,3583.8,3.06906]
[1732905850594,2.78986,3584.4,3584.1,0.7796]
[1732905850880,2.78977,3584.6,3584.1,0.7796]
[1732905851079,2.78977,3584.6,3584.2,0.356984]
[1732905851784,2.78977,3584.6,3584.3,0.55]
[1732905852281,2.737937,3584.6,3584.3,0.55]
[1732905852584,2.78957,3584.8,3584.3,0.55]
[1732905852742,0.7507,3585.1,3584.3,0.55]
[1732905853076,2.78986,3584.4,3584.2,0.55]
[1732905853290,1.35629543,3585.0,3583.9,0.55]
[1732905853291,2.78947,3584.9,3583.9,0.55]
[1732905853432,2.78995,3584.3,3583.9,0.55]
[1732905854737,2.78986,3584.4,3583.9,0.55]
[1732905854938,2.78986,3584.4,3584.1,0.55]
[1732905855137,2.78986,3584.4,3584.2,0.52065692]
[1732905855337,2.78994,3584.3,3584.1,0.55]
[1732905855602,2.78994,3584.3,3584.2,0.52056015]
[1732905855907,2.78986,3584.4,3584.2,0.52056015]
[1732905856063,2.78986,3584.4,3584.3,0.52056015]
[1732905856787,2.78986,3584.5,3584.3,0.52056015]
[1732905857079,2.78986,3584.5,3584.4,0.52056015]
[1732905857881,2.78986,3584.5,3584.2,0.52056015]
[1732905858195,25.42943985,3584.0,3583.9,2.79023]
[1732905858334,25.42943985,3584.0,3583.9,3.85990254]
[1732905859392,25.42943985,3584.0,3583.9,4.64110254]
[1732905860239,25.42943985,3584.0,3583.9,5.19110254]
[1732905862336,25.42943985,3584.0,3583.9,4.64110254]
[1732905862545,25.42943985,3584.0,3583.9,5.19110254]
[1732905863297,25.42943985,3584.0,3583.9,5.45126133]
[1732905863539,25.42943985,3584.0,3583.9,5.19110254]
[1732905865053,25.37943985,3584.0,3583.9,5.60743353]
[1732905865422,23.15436622,3584.0,3583.9,8.60743353]
[1732905865752,23.15436622,3584.0,3583.9,8.88623353]
[1732905866151,23.15436622,3584.0,3583.9,9.14644039]
[1732905867468,23.15436622,3584.0,3583.9,8.46990254]
[1732905872177,22.52660655,3584.0,3583.9,9.40829613]
[1732905872483,22.52660655,3584.0,3583.9,9.66896101]
[1732905874184,18.34436011,3584.0,3583.9,9.66896101]
[1732905874378,17.13763649,3584.0,3583.9,9.66896101]
[1732905880143,17.13763649,3584.0,3583.9,8.33776101]
[1732905880358,17.13763649,3584.0,3583.9,6.98928847]
[1732905881569,17.13763649,3584.0,3583.9,7.53928847]
[1732905882097,17.13763649,3584.0,3583.9,7.540376]
[1732905885294,17.13763649,3584.0,3583.9,6.34023]
[1732905885457,17.13763649,3584.0,3583.9,7.01875509]
[1732905885661,17.13763649,3584.0,3583.9,7.54069747]
[1732905885862,17.13763649,3584.0,3583.9,8.78950076]
[1732905886258,17.13763649,3584.0,3583.9,4.20046747]
[1732905886459,17.92933649,3584.0,3583.9,1.75046747]
[1732905887593,17.92933649,3584.0,3583.9,1.20046747]
[1732905887594,20.71950649,3584.0,3583.9,1.20046747]
[1732905888388,20.71950649,3584.0,3583.9,1.63540949]
[1732905889180,20.71950649,3584.0,3583.9,1.63540125]
[1732905890357,20.71950649,3584.0,3583.9,1.20045411]
[1732905890832,20.71950649,3584.0,3583.9,1.63540125]
[1732905891181,20.71950649,3584.0,3583.9,1.20045411]
[1732905893427,20.71950649,3584.0,3583.9,0.72507875]
[1732905893596,22.07580192,3584.0,3583.9,0.20314218]
[1732905894326,0.7516,3583.2,3583.0,0.52112683]
[1732905894531,0.7516,3583.2,3582.9,0.43494714]
[1732905894532,0.7516,3583.2,3583.1,0.52112683]
[1732905895632,0.7516,3583.2,3583.0,0.52112683]
[1732905895796,0.7516,3583.2,3583.1,0.91673423]
[1732905896543,3.54198,3583.8,3583.2,0.55]
[1732905896830,2.79043,3583.7,3583.4,0.55]
[1732905897046,2.79043,3583.7,3583.4,1.07112683]
[1732905897196,3.54198,3583.8,3583.3,0.55]
[1732905897395,2.7905,3583.6,3583.3,1.61785197]
[1732905897637,2.79064,3583.4,3583.2,0.52112683]
[1732905898042,2.79064,3583.4,3583.1,0.3956074]
[1732905898209,2.79064,3583.4,3583.1,0.91673423]
[1732905898541,2.7907,3583.4,3583.1,0.3956074]
[1732905898734,0.7636,3583.3,3583.0,0.52052017]
[1732905899245,0.7636,3583.3,3582.9,1.07052017]
[1732905899910,0.7636,3583.3,3583.0,0.52052017]
[1732905900098,3.58327,3583.5,3583.1,0.52052017]
[1732905900299,3.58327,3583.5,3583.0,0.52052017]
[1732905900496,3.58327,3583.5,3583.1,0.47290504]
[1732905901499,2.7908,3583.2,3583.1,0.47290504]
[1732905901741,2.7908,3583.2,3582.9,1.07052017]
[1732905901940,2.79077,3583.3,3582.9,1.07052017]
[1732905902145,2.79092,3583.1,3582.9,1.07052017]
[1732905902452,0.7927,3583.5,3582.9,0.55]
[1732905902602,0.8008,3583.9,3583.2,2.79074]
[1732905902802,17.13763649,3584.0,3583.7,2.79036]
[1732905903005,17.13763649,3584.0,3583.6,0.8106]
[1732905903249,17.13763649,3584.0,3583.7,1.07052017]
[1732905903436,17.13763649,3584.0,3583.8,0.41617201]
[1732905903641,17.13763649,3584.0,3583.9,0.41617201]
[1732905904010,17.13763649,3584.0,3583.7,2.7904]
[1732905904212,17.13763649,3584.0,3583.9,0.41617385]
[1732905905004,20.68870649,3584.0,3583.9,0.41617385]
[1732905905205,20.68870649,3584.0,3583.7,0.41617385]
[1732905905405,2.79025,3583.9,3583.2,0.55]
[1732905905613,2.79046,3583.7,3583.3,0.6766162]
[1732905905845,2.79046,3583.7,3583.4,0.6766162]
[1732905906160,17.89853649,3584.0,3583.5,3.4671362]
[1732905906305,20.68876649,3584.0,3583.6,0.6766162]
[1732905906507,20.68876649,3584.0,3583.7,0.6766162]
[1732905906508,17.89853649,3584.0,3583.7,0.6766162]
[1732905906710,17.89853649,3584.0,3583.8,0.6766162]
[1732905906934,17.89853649,3584.0,3583.9,0.6766162]
[1732905907455,20.68870649,3584.0,3583.9,0.6768579]
[1732905909971,17.89853649,3584.0,3583.9,0.6768579]
[1732905910136,17.13763649,3584.0,3583.9,4.53776783]
[1732905910342,17.13763649,3584.0,3583.9,5.13895294]
[1732905910728,17.13763649,3584.0,3583.9,5.57316272]
[1732905911222,17.13763649,3584.0,3583.9,5.57322287]
[1732905911764,17.13763649,3584.0,3583.9,5.57322705]
[1732905911922,17.13763649,3584.0,3583.9,5.13895294]
[1732905913726,17.13763649,3584.0,3583.9,5.14031185]
[1732905914154,17.13763649,3584.0,3583.9,5.57468885]
[1732905914471,17.13763649,3584.0,3583.9,5.14031185]
[1732905914770,17.13763649,3584.0,3583.9,5.57477762]
[1732905915326,17.13763649,3584.0,3583.9,5.14031185]
[1732905915531,17.13763649,3584.0,3583.9,5.57484887]
[1732905916245,17.13763649,3584.0,3583.9,1.63341376]
[1732905916758,17.13763649,3584.0,3583.9,1.19887674]
[1732905917070,19.92780649,3584.0,3583.9,1.19887674]
[1732905921784,19.92780649,3584.0,3583.9,0.67762598]
[1732905922135,19.92780649,3584.0,3583.9,1.19934093]
[1732905922685,17.13763649,3584.0,3583.9,1.19934093]
[1732905923036,19.92780649,3584.0,3583.9,1.19934093]
[1732905923680,19.92780649,3584.0,3583.9,0.67762598]
[1732905923988,19.92780649,3584.0,3583.9,1.19934938]
[1732905925088,15.93828711,3583.8,3583.5,0.43453702]
[1732905925593,18.72864711,3583.8,3583.6,0.43453702]
[1732905925883,18.72864711,3583.8,3583.4,0.43453702]
[1732905926285,18.72864711,3583.8,3583.5,0.43453702]
[1732905926580,15.93828711,3583.8,3583.5,0.7504]
[1732905926770,15.93828711,3583.8,3583.5,1.18493702]
[1732905927542,15.93828711,3583.8,3583.5,0.7504]
[1732905927788,15.93828711,3583.8,3583.5,1.18493702]
[1732905927938,15.93828711,3583.8,3583.7,3.34041]
[1732905928582,15.93828711,3583.8,3583.7,4.13571]
[1732905932054,15.93828711,3583.8,3583.6,0.55]
[1732905932783,15.93828711,3583.8,3583.4,2.79063]
[1732905932997,15.93828711,3583.8,3583.3,3.56989]
[1732905933345,15.93828711,3583.8,3583.6,2.79047]
[1732905935275,15.93828711,3583.8,3583.7,2.79041]
[1732905935570,15.93828711,3583.8,3583.6,2.79047]
[1732905935901,15.93828711,3583.8,3583.7,2.79041]
[1732905936061,15.93828711,3583.8,3583.7,4.120898]
[1732905936662,15.93828711,3583.8,3583.7,4.670898]
[1732905937094,15.93828711,3583.8,3583.7,4.93200882]
[1732905937602,15.93828711,3583.8,3583.7,5.21080882]
[1732905938558,15.93828711,3583.8,3583.7,5.73303027]
[1732905941027,15.93828711,3583.8,3583.7,5.73310297]
[1732905944321,0.7932,3585.4,3584.7,0.55]
[1732905944527,0.7932,3585.4,3584.9,2.78942]
[1732905944673,0.7932,3585.4,3585.0,0.2611956]
[1732905944674,3.58234,3585.4,3585.0,0.2611956]
[1732905944984,0.7932,3585.4,3585.1,0.7835868]
[1732905945184,0.7932,3585.4,3585.2,0.7835868]
[1732905945399,0.7932,3585.4,3585.3,0.2611956]
[1732905945565,3.58228,3585.4,3585.3,0.2611956]
[1732905945971,3.58228,3585.4,3585.3,0.782859]
[1732905946210,3.58228,3585.4,3585.3,0.2611956]
[1732905947405,3.58228,3585.4,3585.3,0.26070771]
[1732905948943,0.7932,3585.4,3585.3,0.26070771]
[1732905949606,0.7432,3585.4,3585.3,0.26070771]
[1732905952347,3.53228,3585.4,3585.3,0.26070771]
[1732905952924,0.7432,3585.4,3585.3,0.26070771]
[1732905953974,0.7432,3585.4,3585.3,0.26037218]
[1732905956364,4.164402,3585.4,3585.3,0.26037218]
[1732905957375,4.164402,3585.4,3585.3,0.26039647]
[1732905957673,4.114402,3585.4,3585.3,0.26039647]
[1732905958047,2.78868,3586.0,3585.3,0.26039647]
[1732905958233,2.78868,3586.0,3584.9,0.751]
[1732905958234,2.78881,3585.8,3585.4,0.26039647]
[1732905958466,2.78881,3585.8,3585.5,0.26039647]
[1732905958768,2.78885,3585.7,3585.6,0.26039647]
[1732905960571,3.51335,3585.7,3585.6,0.26039647]
[1732905960869,0.7245,3585.7,3585.6,0.26039647]
[1732905961871,3.51335,3585.7,3585.6,0.26039647]
[1732905962730,3.51335,3585.7,3585.6,0.2603726]
[1732905963427,0.7245,3585.7,3585.6,0.2603726]
[1732905963627,2.7887,3585.9,3585.6,0.2603726]
[1732905963871,2.7887,3585.9,3585.7,0.2603726]
[1732905964085,2.7887,3585.9,3585.4,0.7728]
[1732905964086,2.7887,3585.9,3585.8,0.2603726]
[1732905964291,4.143376,3585.9,3585.8,0.2603726]
[1732905964753,2.78926,3585.2,3584.9,0.52082041]
[1732905964958,2.78909,3585.4,3585.0,0.78129614]
[1732905965135,2.78909,3585.4,3585.1,0.78129614]
[1732905965472,2.78916,3585.3,3585.2,0.26047573]
[1732905965830,3.51366,3585.3,3585.2,0.26047573]
[1732905966413,2.78875,3585.9,3585.3,0.7866]
[1732905966568,3.51295,3586.3,3585.6,2.78889]
[1732905966766,2.78836,3586.4,3585.9,0.7866]
[1732905967068,2.78836,3586.4,3586.0,0.78157899]
[1732905967273,2.78836,3586.4,3586.1,0.26047573]
[1732905967619,2.78836,3586.4,3586.2,0.26047573]
[1732905967893,2.78836,3586.4,3586.3,0.26047573]
[1732905968258,3.51268,3586.6,3586.3,0.26047573]
[1732905968593,2.78823,3586.5,3586.4,0.26047573]
[1732905969243,2.78823,3586.5,3586.4,0.2605067]
[1732905973457,2.73823,3586.5,3586.4,0.2605067]
[1732905974798,6.16932344,3586.5,3586.4,0.2605067]
[1732905974956,6.89382344,3586.5,3586.4,0.2605067]
[1732905975155,2.78901,3585.5,3585.3,0.52144044]
[1732905975498,2.78901,3585.5,3585.4,0.78218223]
[1732905975682,2.78901,3585.5,3585.4,0.78220914]
[1732905978008,2.78886,3585.7,3585.4,0.93989005]
[1732905978212,3.0,3586.5,3585.6,0.8273]
[1732905978367,2.78859,3586.1,3585.7,0.78220914]
[1732905978566,2.78859,3586.1,3585.8,0.78220914]
[1732905978767,2.78859,3586.1,3585.6,1.3773]
[1732905979007,2.78859,3586.1,3585.7,0.78224254]
[1732905979202,2.78859,3586.1,3585.8,0.78224254]
[1732905979513,2.78859,3586.1,3585.9,0.78224254]
[1732905979720,2.78859,3586.1,3586.0,0.78224254]
[1732905980093,2.78859,3586.1,3586.0,0.26074751]
[1732905980277,4.07079,3586.1,3586.0,0.26074751]
[1732905980482,3.34629,3586.1,3586.0,0.26074751]
[1732905980898,3.34629,3586.1,3586.0,0.78226385]
[1732905981271,2.78859,3586.1,3586.0,0.78226385]
[1732905982222,2.78868,3586.0,3585.3,3.59815]
[1732905982511,2.78859,3586.1,3585.4,0.78229474]
[1732905982666,0.7245,3586.4,3585.5,3.57127474]
[1732905982868,2.78862,3586.0,3585.6,0.78229474]
[1732905983171,2.78862,3586.0,3585.5,2.78898]
[1732905983172,2.78862,3586.0,3585.7,0.78229474]
[1732905983368,2.78862,3586.0,3585.8,0.78229474]
[1732905983568,2.78862,3586.0,3585.9,0.78229474]
[1732905983765,2.78824,3586.5,3586.0,0.809]
[1732905984013,2.78824,3586.5,3586.1,0.78229474]
[1732905984184,2.78831,3586.4,3586.2,0.78229474]
[1732905984383,3.51237,3587.0,3586.3,0.78229474]
[1732905984384,2.78821,3586.6,3586.3,0.78229474]
[1732905984586,2.78821,3586.6,3586.4,0.78223912]
[1732905984840,2.78821,3586.6,3586.5,0.2607712]
[1732905985240,2.78821,3586.6,3586.5,0.78223031]
[1732905987108,2.78821,3586.6,3586.5,0.2607712]
[1732905988846,2.78821,3586.6,3586.5,0.78215651]
[1732905989898,2.78801,3586.8,3586.6,0.7909]
[1732905990145,2.78801,3586.8,3586.7,0.2607712]
[1732905990942,2.78786,3587.0,3586.7,0.2607712]
[1732905991146,2.78778,3587.1,3586.8,0.2607712]
[1732905991449,2.7879,3587.0,3586.9,0.2607712]
[1732905991604,3.51214,3587.3,3586.9,0.2607712]
[1732905991802,3.51214,3587.3,3586.6,0.7909]
[1732905992144,2.78777,3587.1,3586.7,0.78190733]
[1732905992360,2.7879,3587.0,3586.8,0.26063576]
[1732905992545,2.7879,3587.0,3586.9,0.26063576]
[1732905993471,3.417904,3587.0,3586.9,0.26063576]
[1732905994337,2.7879,3587.0,3586.9,0.26063576]
[1732905995062,2.7879,3587.0,3586.9,0.67762696]
[1732905995763,2.7879,3587.0,3586.9,0.67775014]
[1732905997643,2.7879,3587.0,3586.9,0.26067313]
[1732905998176,2.7879,3587.0,3586.9,0.67787484]
[1732905999841,2.78772,3587.2,3586.9,0.67787484]
[1732906000064,2.78776,3587.1,3587.0,0.67787484]
[1732906000465,3.51226,3587.1,3587.0,0.26067313]
[1732906001428,0.7245,3587.1,3586.4,0.7807]
[1732906001757,2.78814,3586.7,3586.5,0.67777308]
[1732906001926,2.78814,3586.7,3586.6,0.67777308]
[1732906002666,2.78814,3586.7,3586.6,0.67776462]
[1732906004730,2.78814,3586.7,3586.6,0.67772796]
[1732906005523,2.788,3586.8,3586.6,0.67772796]
[1732906005723,2.788,3586.8,3586.7,0.67772796]
[1732906006768,2.78794,3586.9,3586.7,0.67772796]
[1732906006941,2.78794,3586.9,3586.8,0.67772796]
[1732906009952,2.78787,3587.0,3586.8,0.67772796]
[1732906010284,2.78787,3587.0,3586.9,0.67772796]
[1732906010491,2.78771,3587.2,3586.9,0.67772796]
[1732906010687,2.78771,3587.2,3587.0,0.67772796]
[1732906010988,2.78771,3587.2,3587.1,0.67772796]
[1732906011491,2.78771,3587.2,3587.1,0.67868482]
[1732906014803,2.78781,3587.1,3586.5,2.78822]
[1732906015015,2.78781,3587.1,3586.6,0.67920317]
[1732906015172,2.78781,3587.1,3586.7,0.67920317]
[1732906015377,2.78781,3587.1,3586.8,0.67920317]
[1732906015688,2.78781,3587.1,3586.9,0.67920317]
[1732906015883,2.78781,3587.1,3587.0,0.67920317]
[1732906016503,3.345362,3587.1,3587.0,0.67920317]
[1732906016913,3.0,3587.6,3587.0,1.46710317]
[1732906017113,2.78742,3587.6,3587.1,0.67920317]
[1732906017274,2.78742,3587.6,3587.0,3.57573]
[1732906017275,3.51176,3587.8,3587.2,0.67920317]
[1732906017474,0.7245,3588.3,3587.3,0.67920317]
[1732906017698,0.7245,3588.3,3587.4,0.67920317]
[1732906017699,2.78726,3587.8,3587.4,0.67920317]
[1732906017898,2.78726,3587.8,3587.5,0.67901475]
[1732906018217,2.78735,3587.7,3587.6,0.67901475]
[1732906018912,2.78707,3588.0,3587.6,1.46691475]
[1732906019115,2.78719,3587.9,3587.7,0.67901475]
[1732906019417,2.78643,3588.9,3588.1,2.78691]
[1732906019575,3.51073,3589.1,3588.2,0.67901475]
[1732906019576,2.78649,3588.8,3588.2,0.67901475]
[1732906019775,2.78629,3589.0,3588.3,0.67901475]
[1732906019970,2.78652,3588.7,3588.4,0.67901475]
[1732906020278,2.78652,3588.7,3588.1,2.78696]
[1732906020279,2.78652,3588.7,3588.5,0.67901475]
[1732906020478,2.78645,3588.8,3588.6,0.67901475]
[1732906020701,2.78645,3588.8,3588.1,2.78696]
[1732906020702,2.78645,3588.8,3588.7,0.67901475]
[1732906020984,2.7859,3589.5,3588.9,2.78635]
[1732906021181,2.7859,3589.5,3589.0,0.67901475]
[1732906021389,2.7859,3589.5,3589.1,0.67901475]
[1732906021575,2.7859,3589.5,3589.2,0.67747007]
[1732906021798,2.7859,3589.5,3589.3,0.26115952]
[1732906021995,4.0,3589.4,3588.9,2.78635]
[1732906022331,2.78598,3589.4,3589.0,0.67652426]
[1732906022531,3.50999,3590.1,3588.9,0.637275]
[1732906022532,2.7859,3589.5,3589.1,0.26020164]
[1732906022739,2.7859,3589.5,3589.2,0.26020164]
[1732906023026,2.78599,3589.4,3589.3,0.26020164]